bitfinex/quotes_BTCUSD_20250716
["timestamp","ask_amount","ask_price","bid_price","bid_amount"]
[1752646896256,0.49072863,118040.0,118030.0,0.2033371]
[1752646897808,0.49072855,118040.0,118030.0,0.2033371]
[1752646898372,0.4822575,118040.0,118030.0,0.28575308]
[1752646899001,0.4659575,118040.0,118030.0,0.28575308]
[1752646899541,0.49002863,118040.0,118030.0,0.28575308]
[1752646899747,0.4815575,118040.0,118030.0,0.28575308]
[1752646899994,0.49002855,118040.0,118030.0,0.28575308]
[1752646901270,0.49849982,118040.0,118030.0,0.2033371]
[1752646901475,0.49849975,118040.0,118030.0,0.2033371]
[1752646901682,0.50697116,118040.0,118030.0,0.2033371]
[1752646901902,0.01758,118040.0,118030.0,0.2064171]
[1752646902127,0.00188,118040.0,118030.0,0.2084671]
[1752646902345,0.001,118040.0,118030.0,0.29422672]
[1752646903267,0.001,118040.0,118030.0,0.379737]
[1752646903919,0.00188,118040.0,118030.0,0.379737]
[1752646904131,0.03248,118040.0,118030.0,0.2033371]
[1752646904744,0.01688,118040.0,118030.0,0.2033371]
[1752646905591,0.01688,118040.0,118030.0,0.2064171]
[1752646905801,0.00188,118040.0,118030.0,0.2064171]
[1752646906014,0.001,118040.0,118030.0,0.37796536]
[1752646906261,0.001,118040.0,118030.0,0.85884286]
[1752646906729,0.001,118040.0,118030.0,1.15164286]
[1752646914983,0.001,118040.0,118030.0,0.70326536]
[1752646915199,0.001,118040.0,118030.0,1.15164286]
[1752646915967,0.001,118040.0,118030.0,1.28228286]
[1752646918666,0.001,118040.0,118030.0,0.83390536]
[1752646918868,0.001,118040.0,118030.0,1.28228286]
[1752646919309,0.001,118040.0,118030.0,0.83390536]
[1752646919523,0.001,118040.0,118030.0,1.28228286]
[1752646921074,0.001,118040.0,118030.0,0.83390536]
[1752646921326,0.001,118040.0,118030.0,1.28228286]
[1752646922259,0.06580991,118060.0,118050.0,0.19483181]
[1752646922440,0.05821993,118060.0,118050.0,0.33601356]
[1752646922692,0.04975002,118060.0,118050.0,0.33601356]
[1752646923118,0.50659743,118060.0,118050.0,0.33601356]
[1752646923333,0.05821993,118060.0,118050.0,0.33601356]
[1752646923552,0.05821993,118060.0,118050.0,0.34101356]
[1752646923766,0.05821993,118060.0,118050.0,0.34501356]
[1752646924200,0.50659743,118060.0,118050.0,0.34501356]
[1752646926277,0.51506741,118060.0,118050.0,0.34501356]
[1752646927006,0.50659743,118060.0,118050.0,0.34501356]
[1752646927807,0.49812752,118060.0,118050.0,0.34501356]
[1752646928035,0.03424995,118060.0,118050.0,0.34501356]
[1752646928250,0.02924995,118060.0,118050.0,0.34809356]
[1752646928482,0.00438019,118060.0,118050.0,0.34809356]
[1752646928694,0.01284995,118060.0,118050.0,0.34809356]
[1752646929153,0.01284995,118060.0,118050.0,0.35014356]
[1752646932358,0.02131986,118060.0,118050.0,0.35014356]
[1752646932883,0.03631986,118060.0,118050.0,0.35014356]
[1752646933092,0.04478991,118060.0,118050.0,0.35014356]
[1752646933302,0.48469736,118060.0,118050.0,0.35014356]
[1752646933956,0.49316741,118060.0,118050.0,0.34809356]
[1752646934443,0.48469736,118060.0,118050.0,0.34809356]
[1752646934682,0.04478991,118060.0,118050.0,0.33654308]
[1752646934925,0.49316741,118060.0,118050.0,0.34501356]
[1752646935112,0.04478991,118060.0,118050.0,0.34501356]
[1752646935337,0.48469736,118060.0,118050.0,0.34501356]
[1752646935548,0.48469736,118060.0,118050.0,0.34798356]
[1752646937005,0.37245297,118060.0,118050.0,0.34798356]
[1752646937206,0.34898306,118060.0,118050.0,0.34798356]
[1752646937752,0.00438019,118060.0,118050.0,0.34798356]
[1752646937956,0.34898306,118060.0,118050.0,0.34798356]
[1752646938369,0.35745297,118060.0,118050.0,0.34798356]
[1752646938490,0.34898306,118060.0,118050.0,0.34798356]
[1752646938694,0.01284995,118060.0,118050.0,0.35001356]
[1752646938932,0.34898306,118060.0,118050.0,0.35001356]
[1752646939179,0.3405133,118060.0,118050.0,0.35001356]
[1752646939423,0.34898306,118060.0,118050.0,0.35001356]
[1752646939595,0.7020562,118060.0,118050.0,0.20883181]
[1752646939792,0.02978998,118060.0,118050.0,0.20883181]
[1752646940034,0.7020562,118060.0,118050.0,0.20680181]
[1752646940236,0.36592309,118060.0,118050.0,0.20680181]
[1752646940449,0.7020562,118060.0,118050.0,0.20680181]
[1752646941429,0.7020562,118060.0,118050.0,0.29166635]
[1752646941640,0.16070991,118060.0,118050.0,0.29166635]
[1752646941866,0.83297613,118060.0,118050.0,0.29166635]
[1752646942485,0.49684302,118060.0,118050.0,0.29166635]
[1752646942992,0.48837297,118060.0,118050.0,0.29166635]
[1752646943198,0.49684302,118060.0,118050.0,0.29166635]
[1752646943725,0.52091314,118060.0,118050.0,0.29166635]
[1752646944371,0.51244302,118060.0,118050.0,0.29166635]
[1752646944576,0.50397297,118060.0,118050.0,0.29166635]
[1752646944755,0.51244309,118060.0,118050.0,0.29166635]
[1752646946006,0.52091328,118060.0,118050.0,0.29166635]
[1752646946151,0.52091328,118060.0,118050.0,0.20680181]
[1752646946592,0.50531328,118060.0,118050.0,0.20680181]
[1752646949245,0.49684309,118060.0,118050.0,0.20680181]
[1752646949809,0.16070998,118060.0,118050.0,0.20680181]
[1752646950002,0.49684309,118060.0,118050.0,0.29256143]
[1752646950211,0.49684302,118060.0,118050.0,0.29256143]
[1752646950941,0.84144632,118060.0,118050.0,0.21527236]
[1752646951144,0.50531321,118060.0,118050.0,0.21527236]
[1752646951357,0.50531314,118060.0,118050.0,0.21527236]
[1752646951997,0.44351105,118060.0,118050.0,0.21527236]
[1752646953049,0.45198089,118060.0,118050.0,0.21527236]
[1752646953258,0.45198089,118060.0,118050.0,0.21730236]
[1752646953671,0.45198089,118060.0,118050.0,0.30306198]
[1752646953886,0.4519806,118060.0,118050.0,0.30306198]
[1752646954937,0.46045065,118060.0,118050.0,0.30306198]
[1752646955142,0.46892077,118060.0,118050.0,0.30306198]
[1752646955567,0.16511934,118060.0,118050.0,0.30306198]
[1752646955750,0.50972257,118060.0,118050.0,0.30306198]
[1752646956182,0.50938545,118060.0,118050.0,0.30306198]
[1752646958029,0.50091533,118060.0,118050.0,0.30306198]
[1752646958387,0.0313,118070.0,118060.0,0.19481531]
[1752646958611,0.0002,118070.0,118060.0,1.01217164]
[1752646958822,0.0002,118070.0,118060.0,1.04327164]
[1752646959031,0.0002,118070.0,118060.0,1.33607164]
[1752646959691,0.0002,118070.0,118060.0,1.34207164]
[1752646959898,0.0002,118070.0,118060.0,1.00593853]
[1752646961154,0.0002,118070.0,118060.0,1.11776856]
[1752646961573,0.0002,118070.0,118060.0,1.20327884]
[1752646962212,0.0002,118070.0,118060.0,0.91047884]
[1752646963545,0.0002,118070.0,118060.0,0.92501969]
[1752646963751,0.0002,118070.0,118060.0,1.26501969]
[1752646964210,0.0002,118070.0,118060.0,1.27345959]
[1752646964884,0.0102,118080.0,118060.0,1.27345959]
[1752646965114,0.0002,118090.0,118080.0,1.13544945]
[1752646965321,0.00035133,118090.0,118080.0,1.2858062]
[1752646965752,0.00035133,118090.0,118080.0,1.2889062]
[1752646966372,0.00035133,118090.0,118080.0,0.84594306]
[1752646966578,0.00035133,118090.0,118080.0,1.2969062]
[1752646966999,0.00035133,118090.0,118080.0,0.84594306]
[1752646967203,0.00035133,118090.0,118080.0,1.2889062]
[1752646967422,0.00035133,118090.0,118080.0,0.84094306]
[1752646967625,0.00035133,118090.0,118080.0,1.2889062]
[1752646968481,0.00035133,118090.0,118080.0,1.31380022]
[1752646968695,0.00035133,118090.0,118080.0,0.86583708]
[1752646968898,0.00035133,118090.0,118080.0,1.31380022]
[1752646973617,0.00035133,118090.0,118080.0,0.86583708]
[1752646973829,0.00035133,118090.0,118080.0,1.31380022]
[1752646974927,0.00035133,118090.0,118080.0,0.76613662]
[1752646975131,0.00035133,118090.0,118080.0,1.21409976]
[1752646978755,0.00035133,118090.0,118080.0,0.76613662]
[1752646978962,0.00035133,118090.0,118080.0,1.21409976]
[1752646986846,0.00035133,118090.0,118080.0,1.21549976]
[1752646987087,0.00035133,118090.0,118080.0,1.43918904]
[1752646987340,0.00035133,118090.0,118080.0,0.85329624]
[1752646987586,0.00035133,118090.0,118080.0,1.52494866]
[1752646988095,0.00035133,118090.0,118080.0,1.87952951]
[1752646988359,0.00035133,118090.0,118080.0,2.21535572]
[1752646988576,0.00035133,118090.0,118080.0,1.87952951]
[1752646988813,0.00035133,118090.0,118080.0,1.20787709]
[1752646989033,0.00035133,118090.0,118080.0,2.10320809]
[1752646992303,0.0002,118100.0,118090.0,1.02867218]
[1752646992527,0.0002,118100.0,118090.0,1.25800256]
[1752646992748,0.0002,118100.0,118090.0,1.26098256]
[1752646993669,0.0002,118100.0,118090.0,1.55518256]
[1752646995015,4.5e-07,118100.0,118090.0,1.55518256]
[1752646995689,4.5e-07,118100.0,118090.0,1.57606956]
[1752647000650,4.5e-07,118100.0,118090.0,1.44330956]
[1752647000883,4.5e-07,118100.0,118090.0,1.39706871]
[1752647001106,0.01570045,118100.0,118090.0,1.50866171]
[1752647002142,0.01570045,118100.0,118090.0,1.37618171]
[1752647002350,0.01570045,118100.0,118090.0,1.37405171]
[1752647002606,0.01570045,118100.0,118090.0,1.50375171]
[1752647002815,0.03090045,118100.0,118090.0,1.50375171]
[1752647003027,0.03090045,118100.0,118090.0,1.50673171]
[1752647004226,0.03090045,118100.0,118090.0,1.37405171]
[1752647004445,0.03090045,118100.0,118090.0,1.50669171]
[1752647005047,0.03090045,118100.0,118090.0,1.05902621]
[1752647005311,4.5e-07,118100.0,118090.0,1.50669171]
[1752647007101,0.01600045,118100.0,118090.0,1.50669171]
[1752647008009,0.01408045,118100.0,118090.0,1.50669171]
[1752647008208,0.0363862,118110.0,118100.0,0.19474933]
[1752647008416,0.0363862,118110.0,118100.0,0.41298895]
[1752647009274,0.04485223,118110.0,118100.0,0.41298895]
[1752647009689,0.0363862,118110.0,118100.0,0.41298895]
[1752647010204,0.0363862,118110.0,118100.0,0.70718895]
[1752647010815,0.04485231,118110.0,118100.0,0.70718895]
[1752647010967,0.06015231,118110.0,118100.0,0.70718895]
[1752647011167,0.0516862,118110.0,118100.0,0.70718895]
[1752647013193,0.0516862,118110.0,118100.0,0.71016895]
[1752647013401,0.0516862,118110.0,118100.0,1.15783445]
[1752647014491,0.0208862,118110.0,118100.0,1.27667473]
[1752647015773,0.0208862,118110.0,118100.0,1.63121558]
[1752647017248,0.0002,118120.0,118110.0,0.34]
[1752647017462,0.0002,118120.0,118110.0,1.99740508]
[1752647017696,0.0002,118120.0,118110.0,1.55484958]
[1752647019187,0.0002,118120.0,118110.0,1.55784958]
[1752647019596,0.0002,118120.0,118110.0,1.56284958]
[1752647019806,0.0002,118120.0,118110.0,1.11518408]
[1752647019981,0.0002,118120.0,118110.0,1.56284958]
[1752647020255,0.0002,118120.0,118110.0,1.55784958]
[1752647020677,0.0002,118120.0,118110.0,1.55484958]
[1752647024839,0.0002,118120.0,118110.0,1.10718408]
[1752647025049,0.0002,118120.0,118110.0,1.55456958]
[1752647037746,0.0002,118120.0,118110.0,0.92848323]
[1752647037955,0.03986546,118120.0,118110.0,0.48893285]
[1752647038168,0.0314,118120.0,118110.0,0.62117285]
[1752647038325,0.03986539,118120.0,118110.0,0.62117285]
[1752647039032,0.0314,118120.0,118110.0,0.61697285]
[1752647039248,0.0314,118120.0,118110.0,1.06463835]
[1752647039466,0.0314,118120.0,118110.0,1.15039797]
[1752647039676,0.0314,118120.0,118110.0,1.15349797]
[1752647040063,0.0162,118120.0,118110.0,1.15349797]
[1752647040739,0.0317,118120.0,118110.0,1.15349797]
[1752647040953,0.0317,118120.0,118110.0,1.15039797]
[1752647041155,0.0317,118120.0,118110.0,0.70273247]
[1752647041362,0.0317,118120.0,118110.0,1.15039797]
[1752647042440,0.0002,118120.0,118110.0,0.70273247]
[1752647042630,0.0002,118120.0,118110.0,0.70583247]
[1752647042833,0.0002,118120.0,118110.0,1.15349797]
[1752647043079,0.0002,118120.0,118110.0,1.15548797]
[1752647043716,0.0002,118120.0,118110.0,1.27259825]
[1752647044366,0.0002,118120.0,118110.0,1.1794736]
[1752647044587,0.0002,118120.0,118110.0,1.6271391]
[1752647055950,0.0002,118120.0,118110.0,2.0748046]
[1752647056520,0.0002,118120.0,118110.0,2.1639846]
[1752647056724,0.0002,118120.0,118110.0,1.6271391]
[1752647060700,0.0102,118130.0,118120.0,0.53471636]
[1752647060901,0.01035128,118130.0,118120.0,1.69509774]
[1752647061348,0.01035128,118130.0,118120.0,1.24743224]
[1752647061809,0.01035128,118130.0,118120.0,1.70963859]
[1752647063247,1e-08,118130.0,118120.0,2.00383859]
[1752647064277,1e-08,118130.0,118120.0,2.01208736]
[1752647064688,1e-08,118130.0,118120.0,2.02228736]
[1752647070153,1e-08,118130.0,118120.0,1.12695636]
[1752647070353,1e-08,118130.0,118120.0,2.02228736]
[1752647073834,1e-08,118130.0,118120.0,2.02384736]
[1752647077979,1e-08,118130.0,118120.0,2.01364736]
[1752647079915,1e-08,118130.0,118120.0,1.11831636]
[1752647080114,1e-08,118130.0,118120.0,2.01364736]
[1752647087120,1e-08,118130.0,118120.0,2.12477988]
[1752647088854,0.0002,118140.0,118130.0,0.20924072]
[1752647089057,0.0102,118150.0,118140.0,0.58072425]
[1752647089258,0.0102,118150.0,118140.0,2.10461805]
[1752647089672,0.0102,118150.0,118140.0,1.76913021]
[1752647089882,0.097777,118160.0,118140.0,1.76913021]
[1752647090079,0.0002,118180.0,118170.0,0.02538628]
[1752647090297,0.00070446,118180.0,118170.0,0.62497397]
[1752647090503,0.00070446,118180.0,118170.0,0.67379397]
[1752647090704,0.00070446,118180.0,118170.0,1.34476965]
[1752647090930,0.00070446,118180.0,118170.0,1.12080808]
[1752647091120,0.00070446,118180.0,118170.0,0.67379397]
[1752647091317,0.00070446,118180.0,118170.0,1.12080808]
[1752647091566,0.00070446,118180.0,118170.0,0.75930425]
[1752647091719,0.01650446,118180.0,118170.0,0.75930425]
[1752647091932,0.01650446,118180.0,118170.0,1.20631836]
[1752647092137,0.03170446,118180.0,118170.0,0.62316425]
[1752647092347,0.03170446,118180.0,118170.0,1.20591836]
[1752647092556,0.03170446,118180.0,118170.0,0.62014425]
[1752647092762,0.03170446,118180.0,118170.0,0.75890425]
[1752647093174,0.03170446,118180.0,118170.0,1.20591836]
[1752647093378,0.03170446,118180.0,118170.0,0.75890425]
[1752647093580,0.03170446,118180.0,118170.0,1.20591836]
[1752647093785,0.03170446,118180.0,118170.0,0.75890425]
[1752647093992,0.03170446,118180.0,118170.0,0.76192425]
[1752647094217,0.01650446,118180.0,118170.0,1.23420844]
[1752647094631,0.01650446,118180.0,118170.0,0.78719433]
[1752647094834,0.03180446,118180.0,118170.0,0.78719433]
[1752647095276,0.03180446,118180.0,118170.0,1.23420844]
[1752647095541,0.03180446,118180.0,118170.0,0.78719433]
[1752647095912,0.03180446,118180.0,118170.0,1.23118844]
[1752647096265,0.03180446,118180.0,118170.0,0.78417433]
[1752647096847,0.03180446,118180.0,118170.0,1.23118844]
[1752647098715,0.03180446,118180.0,118170.0,1.23420844]
[1752647099433,0.01650446,118180.0,118170.0,1.23420844]
[1752647100262,0.00070446,118180.0,118170.0,1.23622844]
[1752647101915,0.00070446,118180.0,118170.0,0.78921433]
[1752647102131,0.00070446,118180.0,118170.0,1.23622844]
[1752647102339,0.00070446,118180.0,118170.0,1.25076929]
[1752647102552,0.00070446,118180.0,118170.0,1.26626929]
[1752647102762,0.00070446,118180.0,118170.0,1.28196929]
[1752647104763,0.00070446,118180.0,118170.0,0.83495518]
[1752647105214,0.00070446,118180.0,118170.0,1.28196929]
[1752647107818,0.00070446,118180.0,118170.0,1.57616929]
[1752647108363,0.00070446,118180.0,118170.0,1.12915518]
[1752647108585,0.00070446,118180.0,118170.0,1.57616929]
[1752647108797,0.00070446,118180.0,118170.0,1.12915518]
[1752647109011,0.00070446,118180.0,118170.0,1.57616929]
[1752647109233,0.00070446,118180.0,118170.0,1.12915518]
[1752647109717,0.00070446,118180.0,118170.0,1.57616929]
[1752647110419,0.00070446,118180.0,118170.0,1.12915518]
[1752647110627,0.00070446,118180.0,118170.0,1.57616929]
[1752647113767,0.00070446,118180.0,118170.0,1.58956683]
[1752647114761,0.00070446,118180.0,118170.0,1.14255272]
[1752647114987,0.00070446,118180.0,118170.0,1.58956683]
[1752647115585,0.00070446,118180.0,118170.0,1.14255272]
[1752647115779,0.00070446,118180.0,118170.0,1.58956683]
[1752647117169,0.00070446,118180.0,118170.0,1.14278596]
[1752647117376,0.00070446,118180.0,118170.0,1.58980007]
[1752647117729,0.00070446,118180.0,118170.0,1.14278596]
[1752647117962,0.00070446,118180.0,118170.0,1.58980007]
[1752647118173,0.0163,118200.0,118190.0,0.19350012]
[1752647118375,0.03235121,118200.0,118190.0,0.3473309]
[1752647118787,0.04081087,118200.0,118190.0,0.3473309]
[1752647119452,0.67395017,118200.0,118190.0,0.33151078]
[1752647119669,0.67395017,118200.0,118190.0,0.33997158]
[1752647119872,0.67395017,118200.0,118190.0,0.20277158]
[1752647120106,0.65703021,118200.0,118190.0,0.32600983]
[1752647120320,0.65703021,118200.0,118190.0,0.15683078]
[1752647120521,0.64857005,118200.0,118190.0,0.15683078]
[1752647121385,0.64857005,118200.0,118190.0,0.01663078]
[1752647121605,1.26289652,118200.0,118190.0,0.01663078]
[1752647121813,1.18109444,118200.0,118190.0,0.01663078]
[1752647122651,0.73408033,118200.0,118190.0,0.01663078]
[1752647122891,0.73408033,118200.0,118190.0,0.01813527]
[1752647123096,0.28706622,118200.0,118190.0,0.01813527]
[1752647123300,5.22399633,118200.0,118190.0,0.01813527]
[1752647124088,5.56399633,118200.0,118190.0,0.01813527]
[1752647124305,6.01101044,118200.0,118190.0,0.01813527]
[1752647125658,6.01101044,118200.0,118190.0,0.0181229]
[1752647126106,6.09677006,118200.0,118190.0,0.0181229]
[1752647126280,6.10469094,118200.0,118190.0,0.0181229]
[1752647126737,6.01893132,118200.0,118190.0,0.0181229]
[1752647127403,1.52901532,118200.0,118190.0,0.0181229]
[1752647127612,6.01893132,118200.0,118190.0,0.0181229]
[1752647127844,6.16893132,118200.0,118190.0,0.0169229]
[1752647128481,6.16101044,118200.0,118190.0,0.0169229]
[1752647128888,6.16892297,118200.0,118190.0,0.0169229]
[1752647129141,6.19156332,118200.0,118190.0,0.0151229]
[1752647129347,0.2171562,118180.0,118170.0,0.06864301]
[1752647129548,0.22565043,118160.0,118150.0,0.25484681]
[1752647129861,0.21718784,118160.0,118150.0,0.06864301]
[1752647130073,0.35690784,118160.0,118150.0,0.06864301]
[1752647130668,0.01692798,118140.0,118130.0,0.688798]
[1752647130870,0.00846388,118140.0,118130.0,0.4035672]
[1752647131073,0.03385654,118140.0,118130.0,0.4035672]
[1752647131676,0.03385654,118140.0,118130.0,0.4068072]
[1752647132085,0.21161174,118140.0,118130.0,0.39834246]
[1752647132282,0.21161174,118140.0,118130.0,0.40680728]
[1752647132483,0.21161174,118140.0,118130.0,0.41527202]
[1752647132898,0.21161174,118140.0,118130.0,0.34662901]
[1752647133294,0.21361174,118140.0,118130.0,0.34662901]
[1752647133640,0.20514786,118140.0,118130.0,0.33492427]
[1752647134268,0.20514786,118140.0,118130.0,0.32645945]
[1752647134462,0.20514786,118140.0,118130.0,0.16980946]
[1752647134667,0.22868376,118140.0,118130.0,0.00050446]
[1752647134782,0.66733801,118140.0,118130.0,0.00050446]
[1752647134989,0.2117552,118140.0,118130.0,0.17827463]
[1752647136016,0.20329067,118140.0,118130.0,0.00050446]
[1752647136893,0.20329067,118140.0,118130.0,0.18673959]
[1752647137093,0.18669067,118140.0,118130.0,0.18673959]
[1752647137626,0.32709067,118140.0,118130.0,0.18673959]
[1752647138290,0.18769067,118140.0,118130.0,0.17827463]
[1752647139357,0.18769067,118140.0,118130.0,0.17827471]
[1752647139568,0.20289067,118140.0,118130.0,0.00050446]
[1752647139776,0.64990478,118140.0,118130.0,0.00050446]
[1752647139983,0.73541506,118140.0,118130.0,0.00050446]
[1752647140419,0.73441506,118140.0,118130.0,0.00050446]
[1752647140630,0.75984106,118140.0,118130.0,0.00050446]
[1752647140835,0.76084106,118140.0,118130.0,0.00050446]
[1752647141049,0.31282695,118140.0,118130.0,0.00050446]
[1752647141290,0.75984106,118140.0,118130.0,0.00050446]
[1752647141486,0.75984106,118140.0,118130.0,0.00550446]
[1752647143434,0.75784106,118140.0,118130.0,0.00550446]
[1752647143866,0.31082695,118140.0,118130.0,0.00250446]
[1752647144087,0.75784106,118140.0,118130.0,0.00250446]
[1752647144326,0.75884106,118140.0,118130.0,0.01250446]
[1752647144787,0.75884106,118140.0,118130.0,0.01750446]
[1752647146050,0.80280377,118140.0,118130.0,0.01750446]
[1752647146267,0.75884106,118140.0,118130.0,0.01750446]
[1752647146695,1.09884106,118140.0,118130.0,0.01750446]
[1752647150392,0.65182695,118140.0,118130.0,0.16750446]
[1752647150622,1.09884106,118140.0,118130.0,0.16750446]
[1752647150831,1.23784106,118140.0,118130.0,0.16750446]
[1752647151036,1.22264106,118140.0,118130.0,0.16750446]
[1752647151464,0.77562695,118140.0,118130.0,0.16750446]
[1752647151670,1.22264106,118140.0,118130.0,0.16750446]
[1752647152621,0.76010695,118140.0,118130.0,0.16750446]
[1752647153030,1.20712106,118140.0,118130.0,0.16750446]
[1752647154721,1.06824106,118140.0,118130.0,0.16750446]
[1752647154931,1.20696106,118140.0,118130.0,0.16750446]
[1752647155136,1.06824106,118140.0,118130.0,0.16750446]
[1752647155341,1.20688106,118140.0,118130.0,0.16750446]
[1752647156194,1.22318106,118140.0,118130.0,0.16750446]
[1752647157216,1.20688106,118140.0,118130.0,0.16750446]
[1752647157435,1.21479798,118140.0,118130.0,0.16750446]
[1752647158518,1.23039798,118140.0,118130.0,0.16750446]
[1752647159960,1.22248106,118140.0,118130.0,0.16750446]
[1752647160174,1.23040419,118140.0,118130.0,0.16750446]
[1752647163380,1.21480419,118140.0,118130.0,0.16750446]
[1752647164861,1.21481013,118140.0,118130.0,0.16750446]
[1752647165296,1.23011013,118140.0,118130.0,0.16750446]
[1752647166537,1.31586975,118140.0,118130.0,0.16750446]
[1752647166741,0.88415564,118140.0,118130.0,0.16750446]
[1752647166942,1.24541013,118140.0,118130.0,0.16750446]
[1752647167785,1.24541415,118140.0,118130.0,0.16750446]
[1752647168876,1.24541562,118140.0,118130.0,0.16750446]
[1752647170666,1.24541832,118140.0,118130.0,0.16750446]
[1752647171123,0.79840421,118140.0,118130.0,0.16750446]
[1752647171324,1.24541832,118140.0,118130.0,0.16750446]
[1752647171524,1.23011832,118140.0,118130.0,0.16750446]
[1752647171727,1.21433832,118140.0,118130.0,0.16750446]
[1752647173102,1.23013832,118140.0,118130.0,0.16750446]
[1752647174087,0.78312421,118140.0,118130.0,0.16750446]
[1752647174291,1.23013832,118140.0,118130.0,0.16750446]
[1752647174492,0.78312421,118140.0,118130.0,0.16750446]
[1752647174698,1.23013832,118140.0,118130.0,0.16750446]
[1752647176436,1.22220106,118140.0,118130.0,0.16750446]
[1752647178459,1.20640106,118140.0,118130.0,0.16750446]
[1752647180351,1.20640106,118140.0,118130.0,0.16750446]
[1752647183425,1.18097506,118140.0,118130.0,0.16750446]
[1752647184094,0.73396095,118140.0,118130.0,0.16750446]
[1752647184254,1.18097506,118140.0,118130.0,0.16750446]
[1752647185779,1.18097506,118140.0,118130.0,0.18360446]
[1752647186006,1.18097506,118140.0,118130.0,0.18669446]
[1752647187348,0.73396095,118140.0,118130.0,0.18669446]
[1752647187556,1.18097506,118140.0,118130.0,0.18669446]
[1752647189795,0.73396095,118140.0,118130.0,0.18669446]
[1752647189999,1.18097506,118140.0,118130.0,0.18669446]
[1752647191491,0.73396095,118140.0,118130.0,0.18669446]
[1752647191712,1.18097506,118140.0,118130.0,0.18669446]
[1752647195418,0.60426505,118140.0,118130.0,0.38223456]
[1752647195619,0.74098505,118140.0,118130.0,0.38223456]
[1752647195818,0.74098505,118140.0,118130.0,0.39069952]
[1752647196041,0.74944958,118140.0,118130.0,0.39069952]
[1752647197542,0.001,118140.0,118130.0,0.84617837]
[1752647198177,0.001,118140.0,118130.0,0.91482138]
[1752647198800,0.001,118140.0,118130.0,1.00033166]
[1752647199027,0.001,118140.0,118130.0,1.34033166]
[1752647199652,0.00846259,118160.0,118150.0,0.22686692]
[1752647199857,0.00846259,118160.0,118150.0,0.81036103]
[1752647200031,0.19465029,118160.0,118150.0,0.22356361]
[1752647200239,0.02538828,118160.0,118150.0,0.37689037]
[1752647200448,0.20311339,118160.0,118150.0,0.37689037]
[1752647200654,0.20311339,118160.0,118150.0,0.36842706]
[1752647200864,0.02538828,118160.0,118150.0,0.37889044]
[1752647201071,0.02538828,118160.0,118150.0,0.38735375]
[1752647201277,0.19465029,118160.0,118150.0,0.25095375]
[1752647201479,0.19465029,118160.0,118150.0,0.03936]
[1752647201480,0.63320181,118160.0,118150.0,0.03936]
[1752647201682,0.17772496,118160.0,118150.0,0.34591634]
[1752647202110,0.17772496,118160.0,118150.0,0.019]
[1752647202319,0.71024935,118160.0,118150.0,0.13924]
[1752647202532,0.71024935,118160.0,118150.0,0.16023]
[1752647202739,0.71024935,118160.0,118150.0,0.17593]
[1752647203355,0.26323524,118160.0,118150.0,0.17593]
[1752647204369,0.26323524,118160.0,118150.0,0.17581]
[1752647205450,0.71024935,118160.0,118150.0,0.16011]
[1752647205663,0.71024935,118160.0,118150.0,0.15805]
[1752647206514,0.71024935,118160.0,118150.0,0.15793]
[1752647206724,0.71024935,118160.0,118150.0,0.02193]
[1752647206941,0.71024935,118160.0,118150.0,0.003]
[1752647207156,0.79768454,118160.0,118150.0,0.003]
[1752647207369,5.42356054,118160.0,118150.0,0.003]
[1752647208249,5.39423251,118160.0,118150.0,0.003]
[1752647208936,5.36862535,118160.0,118150.0,0.003]
[1752647209146,5.35272535,118160.0,118150.0,0.003]
[1752647211236,5.36842535,118160.0,118150.0,0.003]
[1752647211664,5.35272535,118160.0,118150.0,0.003]
[1752647212799,5.42413372,118160.0,118150.0,0.003]
[1752647214220,4.90571124,118160.0,118150.0,0.003]
[1752647214452,0.84620935,118160.0,118150.0,0.03949]
[1752647214698,0.39919524,118160.0,118150.0,0.20876634]
[1752647214906,0.26323524,118160.0,118150.0,0.34480634]
[1752647215118,0.26323524,118160.0,118150.0,0.36173382]
[1752647215608,0.26323524,118160.0,118150.0,0.37019742]
[1752647215824,0.26323524,118160.0,118150.0,0.36173382]
[1752647217840,0.26323524,118160.0,118150.0,0.35327015]
[1752647218676,0.25477229,118160.0,118150.0,0.17553]
[1752647219103,0.7017864,118160.0,118150.0,0.17537]
[1752647221576,0.78754602,118160.0,118150.0,0.17537]
[1752647221982,0.7017864,118160.0,118150.0,0.17537]
[1752647223419,0.7017864,118160.0,118150.0,0.13864]
[1752647224492,0.25477229,118160.0,118150.0,0.02173]
[1752647224629,0.25477229,118160.0,118150.0,0.04029]
[1752647224869,0.7017864,118160.0,118150.0,0.02173]
[1752647225065,0.7017864,118160.0,118150.0,0.13856]
[1752647225468,0.7017864,118160.0,118150.0,0.003]
[1752647227447,0.25477229,118160.0,118150.0,0.003]
[1752647227655,0.7017864,118160.0,118150.0,0.003]
[1752647230723,0.25477229,118160.0,118150.0,0.003]
[1752647230941,0.7017864,118160.0,118150.0,0.003]
[1752647232410,0.78754602,118160.0,118150.0,0.003]
[1752647232652,0.7017864,118160.0,118150.0,0.003]
[1752647233407,0.8368664,118160.0,118150.0,0.003]
[1752647235474,0.8525664,118160.0,118150.0,0.003]
[1752647236458,0.40555229,118160.0,118150.0,0.003]
[1752647236663,0.8525664,118160.0,118150.0,0.003]
[1752647237080,0.8368664,118160.0,118150.0,0.003]
[1752647238645,6.25716329,118160.0,118150.0,0.003]
[1752647238857,6.27170414,118160.0,118150.0,0.003]
[1752647239489,6.29713014,118160.0,118150.0,0.002]
[1752647239906,0.18621923,118140.0,118130.0,0.15050446]
[1752647240114,0.85370362,118140.0,118130.0,0.15050446]
[1752647240732,0.40668951,118140.0,118130.0,0.16860446]
[1752647240941,0.85370362,118140.0,118130.0,0.16860446]
[1752647241768,0.85370362,118140.0,118130.0,0.16960446]
[1752647241928,0.85370362,118140.0,118130.0,0.17060446]
[1752647242925,0.85370362,118140.0,118130.0,0.15250446]
[1752647243667,0.93946324,118140.0,118130.0,0.15250446]
[1752647244258,0.85370362,118140.0,118130.0,0.15250446]
[1752647246840,1.23441078,118140.0,118130.0,0.15250446]
[1752647247040,5.73992678,118140.0,118130.0,0.15250446]
[1752647248066,5.75446763,118140.0,118130.0,0.15250446]
[1752647248291,4.6676861,118130.0,118120.0,0.00156]
[1752647248510,6.17943176,118130.0,118120.0,0.00156]
[1752647248710,5.74791765,118130.0,118120.0,0.00156]
[1752647249342,5.85883049,118130.0,118120.0,0.00156]
[1752647249542,5.88426249,118130.0,118120.0,0.00156]
[1752647249750,5.95070423,118130.0,118120.0,0.00456]
[1752647249952,5.86876249,118130.0,118120.0,0.00456]
[1752647250165,5.86876249,118130.0,118120.0,0.00556]
[1752647251232,5.11862838,118130.0,118120.0,0.04128]
[1752647251438,5.25502838,118130.0,118120.0,0.04128]
[1752647251853,0.73968038,118130.0,118120.0,0.04128]
[1752647252480,0.79603585,118130.0,118120.0,0.04128]
[1752647252894,1.24304996,118130.0,118120.0,0.04128]